bitfinex-derivatives/quotes_SOLF0:USTF0_20250328
["timestamp","ask_amount","ask_price","bid_price","bid_amount"]
[1743200880172,7.7356,129.36,129.34,7.78834752]
[1743200880958,7.7362,129.35,129.34,0.05184752]
[1743200885374,7.7358,129.36,129.34,17.75483543]
[1743200885563,0.0590337,129.37,129.35,9.96638791]
[1743200885765,0.0590337,129.37,129.36,37.18638791]
[1743200886065,87.50726187,129.44,129.36,37.18638791]
[1743200886269,85.49936187,129.44,129.42,9.96638791]
[1743200886468,10.77554257,129.43,129.41,34.9523]
[1743200886674,9.96638791,129.42,129.32,255.14]
[1743200886867,9.96638791,129.4,129.36,9.96638791]
[1743200887263,0.05287776,129.39,129.37,0.05369504]
[1743200888374,7.7345,129.38,129.37,0.05369504]
[1743200889178,9.96638791,129.45,129.37,37.24008295]
[1743200889477,24.77543048,129.46,129.41,9.96638791]
[1743200889672,10.77554257,129.46,129.44,9.96638791]
[1743200889882,10.77554257,129.46,129.45,9.96638791]
[1743200890366,117.61562878,129.47,129.45,9.96638791]
[1743200890570,117.61562878,129.47,129.44,37.2425659]
[1743200891271,117.61562878,129.47,129.44,44.9729659]
[1743200891771,0.05400621,129.47,129.44,44.9729659]
[1743200892971,9.96638791,129.45,129.44,0.05617799]
[1743200893172,9.96638791,129.45,129.41,27.22]
[1743200893475,17.69828791,129.43,129.4,255.12]
[1743200894074,9.96638791,129.43,129.4,255.12]
[1743200894281,7.7323,129.42,129.4,255.17618898]
[1743200895275,7.7326,129.41,129.4,255.17618898]
[1743200899675,0.05493364,129.43,129.4,255.17618898]
[1743200900184,0.05493364,129.43,129.4,262.90898898]
[1743200900986,0.05493364,129.43,129.4,255.17618898]
[1743200901699,7.732,129.42,129.4,255.17618898]
[1743200901888,0.05493364,129.43,129.4,262.90928898]
[1743200902187,0.05493364,129.43,129.4,270.66249923]
[1743200903887,0.05493364,129.43,129.42,7.732]
[1743200904190,0.05493364,129.43,129.42,34.932]
[1743200907887,17.52661025,129.5,129.45,7.73]
[1743200908086,17.52661025,129.5,129.45,34.93]
[1743200908283,7.7286,129.48,129.45,34.93]
[1743200908991,7.78715718,129.48,129.45,34.98253085]
[1743200910888,7.7291,129.47,129.45,34.98253085]
[1743200911093,7.7291,129.47,129.45,27.25253085]
[1743200912290,7.7296,129.46,129.45,27.25253085]
[1743200916598,7.7296,129.46,129.45,0.05253085]
[1743200917802,7.7293,129.47,129.45,0.05253085]
[1743200918100,0.05855718,129.48,129.45,0.05253085]
[1743200918501,7.78725718,129.48,129.45,7.78243085]
[1743200919802,7.729,129.47,129.45,7.78243085]
[1743200920302,7.729,129.47,129.45,0.05253085]
[1743200923104,7.7296,129.46,129.45,0.05253085]
[1743200923496,17.63433668,129.46,129.45,0.05253085]
[1743200925398,7.7296,129.46,129.45,0.05253085]
[1743200925701,7.7294,129.47,129.45,0.05253085]
[1743200926807,7.7296,129.46,129.45,0.05253085]
[1743200928098,7.7293,129.47,129.45,0.05253085]
[1743200931200,7.7293,129.47,129.45,7.78263085]
[1743200931507,7.7291,129.47,129.45,7.78263085]
[1743200934904,7.78725718,129.48,129.46,7.7295]
[1743200935614,7.78725718,129.48,129.45,17.68726753]
[1743200936012,0.05855718,129.48,129.47,9.90473668]
[1743200936221,0.05855718,129.48,129.47,17.63373668]
[1743200939620,7.7257,129.53,129.5,7.7271]
[1743200939817,7.7257,129.53,129.5,34.9271]
[1743200940715,7.77609313,129.53,129.5,34.9818246]
[1743200942819,7.726,129.52,129.5,34.9818246]
[1743200943520,7.7266,129.51,129.5,27.2547246]
[1743200943919,17.63133668,129.51,129.5,0.0547246]
[1743200944328,7.7266,129.51,129.5,0.0547246]
[1743200948126,7.77609313,129.53,129.5,0.0547246]
[1743200948319,0.05039313,129.53,129.51,37.32473668]
[1743200948517,0.05039313,129.53,129.51,45.05103668]
[1743200949416,7.77599313,129.53,129.51,27.42]
[1743200950220,7.726,129.52,129.51,27.42]
[1743200952024,7.7266,129.51,129.5,0.0547246]
[1743200952231,17.63133668,129.51,129.5,0.0547246]
[1743200953929,9.90473668,129.51,129.41,254.94]
[1743200954125,9.90473668,129.44,129.41,282.4]
[1743200954431,9.90473668,129.49,129.43,9.90473668]
[1743200954630,9.90473668,129.47,129.44,27.46]
[1743200954827,9.90473668,129.46,129.44,27.46]
[1743200955127,7.7302,129.45,129.44,0.05320659]
[1743200961031,7.73,129.46,129.44,0.05320659]
[1743200961232,7.73,129.46,129.44,9.95794327]
[1743200963527,7.73,129.46,129.44,0.05320659]
[1743200965533,7.73,129.46,129.44,7.78400659]
[1743200966531,7.73,129.46,129.44,0.05320659]
[1743200967533,7.73,129.46,129.44,9.95794327]
[1743200967734,9.96005055,129.47,129.44,0.05320659]
[1743200967935,9.90473668,129.45,129.41,254.94]
[1743200968139,9.90473668,129.43,129.41,254.94]
[1743200968338,7.732,129.42,129.41,254.94]
[1743200970438,7.732,129.42,129.35,264.84473668]
[1743200970439,9.90473668,129.42,129.35,264.84473668]
[1743200970630,9.90473668,129.39,129.35,254.94]
[1743200970830,9.90473668,129.38,129.35,254.94]
[1743200971031,7.7356,129.36,129.35,254.94]
[1743200971740,7.7356,129.36,129.34,0.05380502]
[1743200971933,9.90473668,129.35,129.31,9.90473668]
[1743200972132,9.90473668,129.4,129.34,9.90473668]
[1743200972333,7.7333,129.4,129.37,9.90473668]
[1743200972536,7.7333,129.4,129.36,9.90473668]
[1743200972835,7.7333,129.4,129.35,7.7359]
[1743200973030,0.05475874,129.39,129.36,0.05636044]
[1743200973340,0.05475874,129.39,129.38,23.22616743]
[1743200973531,2.1267,129.46,129.38,15.49176743]
[1743200973841,15.49176743,129.45,129.37,27.5]
[1743200974046,15.49176743,129.45,129.37,35.2346]
[1743200974234,15.49176743,129.45,129.37,27.5]
[1743200974641,0.04913167,129.42,129.4,0.0505826]
[1743200975534,7.78143167,129.42,129.4,0.0505826]
[1743200978242,0.04913167,129.42,129.4,0.0505826]
[1743200980044,7.78113167,129.42,129.4,0.0505826]
[1743200980745,0.04913167,129.42,129.4,7.7837826]
[1743200981646,7.78113167,129.42,129.4,7.7837826]
[1743200981846,0.04913167,129.42,129.4,7.7837826]
[1743200983748,7.78113167,129.42,129.4,7.7837826]
[1743200983941,7.78113167,129.42,129.4,0.0505826]
[1743200987250,7.78113167,129.42,129.32,15.49176743]
[1743200987251,15.49176743,129.41,129.32,15.49176743]
[1743200987454,15.49176743,129.39,129.3,19.71546743]
[1743200987658,42.95176743,129.39,129.31,27.46]
[1743200988245,42.95176743,129.39,129.33,7.7369]
[1743200988446,0.04899667,129.36,129.34,0.05028536]
[1743200989659,0.04899667,129.36,129.34,15.54205279]
[1743200989849,0.04899667,129.36,129.34,43.00205279]
[1743200990258,0.04899667,129.36,129.35,7.7362]
[1743200991253,53.66895089,129.43,129.34,43.00205279]
[1743200991458,38.17718346,129.43,129.36,15.49176743]
[1743200991655,10.71718346,129.43,129.37,27.46]
[1743200991857,7.7323,129.42,129.37,27.46]
[1743200992058,7.7323,129.42,129.39,7.7335]
[1743200992660,7.79088823,129.42,129.39,7.78435313]
[1743200993263,0.05858823,129.42,129.4,7.7331]
[1743200993455,0.05858823,129.42,129.39,0.05085313]
[1743200994363,15.49176743,129.41,129.3,4.095]
[1743200994563,15.49176743,129.38,129.3,47.06676743]
[1743200994763,7.7358,129.36,129.32,7.7377]
[1743200994963,42.97176743,129.38,129.32,7.7377]
[1743200995556,0.05527184,129.36,129.34,0.05808075]
[1743200996456,0.05527184,129.36,129.35,7.7362]
[1743200999167,42.77944416,129.43,129.34,15.54984818]
[1743200999468,42.95176743,129.44,129.36,15.49176743]
[1743200999671,42.95176743,129.44,129.37,27.48]
[1743200999966,7.7323,129.42,129.39,7.7335]
[1743201000362,7.78983241,129.42,129.39,7.78405293]
[1743201000561,7.78983241,129.42,129.4,7.7331]
[1743201000866,0.05753241,129.42,129.4,7.7331]
[1743201001067,0.05753241,129.42,129.39,7.78405293]
[1743201001260,0.05753241,129.42,129.39,0.05055293]
[1743201001462,0.05753241,129.42,129.4,7.7332]
[1743201002167,0.05753241,129.42,129.39,7.78415293]
[1743201002563,0.05753241,129.42,129.39,0.05055293]
[1743201002762,43.08929984,129.42,129.39,0.05055293]
[1743201003163,27.59753241,129.42,129.39,0.05055293]
[1743201003570,35.32973241,129.42,129.39,0.05055293]
[1743201003765,7.78973241,129.42,129.39,0.05055293]
[1743201003961,7.78973241,129.42,129.39,7.78405293]
[1743201004470,7.78973241,129.42,129.4,7.7332]
[1743201005166,7.78973241,129.42,129.39,7.78405293]
[1743201005870,0.05753241,129.42,129.4,7.7331]
[1743201006469,7.78963241,129.42,129.4,7.7331]
[1743201006768,7.78963241,129.42,129.39,7.78405293]
[1743201007067,7.78963241,129.42,129.39,0.05055293]
[1743201007273,7.78963241,129.42,129.4,43.11176743]
[1743201007274,0.05753241,129.42,129.4,43.11176743]
[1743201007469,0.05753241,129.42,129.39,0.05055293]
[1743201008167,0.05753241,129.42,129.39,27.67055293]
[1743201008369,0.05753241,129.42,129.4,15.49176743]
[1743201009476,0.05753241,129.42,129.41,7.7326]
[1743201009869,7.78953241,129.42,129.39,27.67055293]
[1743201010072,0.05753241,129.42,129.39,27.67055293]
[1743201010572,0.05753241,129.42,129.39,0.05055293]
[1743201011672,7.7332,129.4,129.39,0.05055293]
[1743201012671,7.7328,129.41,129.39,0.05055293]
[1743201012872,0.05753241,129.42,129.39,27.67055293]
[1743201013977,0.05753241,129.42,129.39,0.05055293]
[1743201014172,7.7332,129.4,129.39,0.05055293]
[1743201014376,0.05753241,129.42,129.39,0.05055293]
[1743201014779,0.05753241,129.42,129.4,7.7331]
[1743201014971,0.05753241,129.42,129.39,0.05055293]
[1743201015170,0.05753241,129.42,129.4,7.7332]
[1743201015371,0.05753241,129.42,129.4,35.3932]
[1743201015979,0.05753241,129.42,129.39,0.05055293]
[1743201016276,7.78973241,129.42,129.39,7.78395293]
[1743201016480,0.05753241,129.42,129.39,0.05055293]
[1743201017281,0.05753241,129.42,129.4,7.7329]
[1743201017573,0.05753241,129.42,129.39,0.05055293]
[1743201017983,7.733,129.41,129.39,0.05055293]
[1743201018578,7.7332,129.4,129.39,0.05055293]
[1743201019279,7.7329,129.41,129.39,0.05055293]
[1743201019783,0.05753241,129.42,129.39,0.05055293]
[1743201020782,7.78993241,129.42,129.4,7.7331]
[1743201020975,0.05753241,129.42,129.4,7.7331]
[1743201021483,0.05753241,129.42,129.4,27.68]
[1743201021680,0.05753241,129.42,129.39,0.05055293]
[1743201021982,7.7332,129.4,129.39,0.05055293]
[1743201024980,7.7332,129.4,129.35,255.08]
[1743201025179,15.49176743,129.4,129.35,255.08]
[1743201026185,0.05003661,129.39,129.36,0.05451465]
[1743201026886,7.735,129.37,129.36,0.05451465]
[1743201027086,7.735,129.37,129.36,1.465e-05]
[1743201027983,7.7349,129.38,129.36,1.465e-05]
[1743201028683,7.735,129.37,129.36,1.465e-05]
[1743201030288,7.7346,129.38,129.36,1.465e-05]
[1743201030687,0.05003661,129.39,129.37,7.7347]
[1743201030882,0.05003661,129.39,129.37,45.24745006]
[1743201031781,7.78383661,129.39,129.37,27.6]
[1743201031982,0.05003661,129.39,129.37,27.6]
[1743201032290,7.78413661,129.39,129.37,27.6]
[1743201033389,0.05003661,129.39,129.37,35.3348]
[1743201033687,0.05003661,129.39,129.37,37.51275006]
[1743201033986,7.7322,129.42,129.38,9.91275006]
[1743201034183,7.7322,129.42,129.4,9.91275006]
[1743201034389,7.7322,129.42,129.4,37.51275006]
[1743201034581,7.7322,129.42,129.4,27.6]
[1743201034978,7.7326,129.41,129.4,27.65842932]
[1743201035187,7.7326,129.41,129.4,0.05842932]
[1743201037586,15.54183017,129.42,129.36,27.6]
[1743201038186,0.05840897,129.42,129.36,27.6]
[1743201038388,0.05840897,129.42,129.37,15.4834212]
[1743201038888,0.05840897,129.42,129.39,7.7335]
[1743201038889,7.79070897,129.42,129.39,7.7335]
[1743201039086,7.79070897,129.42,129.39,35.3335]
[1743201039394,7.79070897,129.42,129.4,7.7332]
[1743201039892,7.7326,129.41,129.39,27.6]
[1743201040593,15.54183017,129.42,129.38,0.05932298]
[1743201041793,7.7338,129.39,129.38,0.05932298]
[1743201042385,7.7333,129.4,129.38,0.05932298]
[1743201042587,0.05840897,129.42,129.38,0.05932298]
[1743201042893,7.7329,129.41,129.38,7.79332298]
[1743201044083,7.7335,129.4,129.38,0.05932298]
[1743201045596,0.05840897,129.42,129.38,0.05932298]
[1743201045795,0.05840897,129.42,129.39,27.58]
[1743201046299,7.79070897,129.42,129.39,35.3135]
[1743201047297,7.79070897,129.42,129.4,7.7331]
[1743201048798,7.7327,129.41,129.39,35.3136]
[1743201049099,7.7327,129.41,129.39,27.58]
[1743201049603,7.7332,129.4,129.39,27.58]
[1743201049897,15.54183017,129.42,129.38,0.05932298]
[1743201050201,7.7338,129.39,129.38,0.05932298]
[1743201050997,7.7335,129.4,129.38,0.05932298]
[1743201052995,7.7338,129.39,129.38,0.05932298]
[1743201053997,7.7334,129.4,129.38,0.05932298]
[1743201057597,7.7334,129.4,129.38,7.79362298]
[1743201058904,7.7334,129.4,129.38,0.05932298]
[1743201060299,7.7334,129.4,129.38,7.79362298]
[1743201061000,7.7334,129.4,129.38,0.05932298]
[1743201061394,7.7334,129.4,129.38,7.79362298]
[1743201061901,7.7334,129.4,129.38,0.05932298]
[1743201062602,17.64643478,129.41,129.38,7.79352298]
[1743201063107,7.7333,129.4,129.38,7.79352298]
[1743201063805,0.05840897,129.42,129.38,9.97285776]
[1743201064000,0.05840897,129.42,129.39,27.5]
[1743201064403,0.05840897,129.42,129.4,7.7329]
[1743201064709,0.05840897,129.42,129.39,27.5]
[1743201065309,7.79070897,129.42,129.39,35.2335]
[1743201065808,7.7332,129.4,129.39,27.5]
[1743201066003,9.91353478,129.41,129.38,0.05932298]
[1743201066310,9.91353478,129.39,129.38,0.05932298]
[1743201066509,7.7362,129.35,129.34,255.08]
[1743201066710,9.91353478,129.37,129.34,255.08]
[1743201066911,7.7354,129.37,129.34,255.08]
[1743201067598,7.78859214,129.37,129.34,255.08]
[1743201068905,7.78859214,129.37,129.34,262.8168]
[1743201070305,0.05319214,129.37,129.34,255.08]
[1743201070511,0.05319214,129.37,129.31,27.48]
[1743201071319,27.51319214,129.37,129.29,15.49822626]
[1743201071508,15.49822626,129.36,129.3,27.46]
[1743201071711,0.05357567,129.34,129.3,27.46]
[1743201071915,0.05357567,129.34,129.32,7.7377]
[1743201072613,0.05357567,129.34,129.33,7.7374]
[1743201073418,0.05357567,129.34,129.33,35.1974]
[1743201076621,0.05357567,129.34,129.33,27.46]
[1743201076829,0.05357567,129.34,129.29,15.49822626]
[1743201077015,0.05357567,129.34,129.31,27.46]
[1743201077211,7.79067567,129.34,129.31,35.1981]
[1743201077418,0.05357567,129.34,129.31,35.1981]
[1743201078525,7.79067567,129.34,129.31,35.1981]
[1743201078717,0.05357567,129.34,129.31,27.46]
[1743201079223,0.05357567,129.34,129.33,7.7374]
[1743201079726,0.05357567,129.34,129.31,27.46]
[1743201081229,0.05357567,129.34,129.33,7.7374]
[1743201081530,0.05357567,129.34,129.31,27.46]
[1743201081930,0.05357567,129.34,129.29,15.49822626]
[1743201082130,0.05357567,129.34,129.32,7.7376]
[1743201082528,0.05357567,129.34,129.3,27.46]
[1743201082723,7.79037567,129.34,129.31,7.7382]
[1743201084231,0.05357567,129.34,129.31,7.7382]
[1743201084632,0.05357567,129.34,129.32,7.7379]
[1743201085030,0.05357567,129.34,129.3,27.46]
[1743201085331,0.05357567,129.34,129.31,7.7382]
[1743201085720,0.05357567,129.34,129.3,27.46]
[1743201085920,0.05357567,129.34,129.31,7.7384]
[1743201087834,0.05357567,129.34,129.32,7.7378]
[1743201088033,0.05357567,129.34,129.3,27.46]
[1743201088429,0.05357567,129.34,129.31,15.49822626]
[1743201088630,0.05357567,129.34,129.33,7.7374]
[1743201088829,0.05357567,129.34,129.33,17.65643439]
[1743201089434,0.05357567,129.34,129.33,7.7374]
[1743201089632,0.05357567,129.34,129.32,7.7377]
[1743201089933,9.97261006,129.34,129.3,37.37903439]
[1743201090328,17.70951006,129.34,129.31,7.7382]
[1743201091132,0.05357567,129.34,129.3,37.37903439]
[1743201091335,0.05357567,129.34,129.31,9.91903439]
[1743201092729,0.05357567,129.34,129.33,7.7374]
[1743201092930,0.05357567,129.34,129.33,35.1574]
[1743201093342,0.05357567,129.34,129.33,45.07643439]
[1743201095639,42.77944416,129.42,129.33,37.33903439]
[1743201095840,9.91903439,129.4,129.36,9.91903439]
[1743201096043,9.91903439,129.4,129.36,37.33903439]
[1743201096242,9.91903439,129.4,129.38,7.7341]
[1743201096736,17.65233439,129.4,129.38,7.7870012]
[1743201096933,17.70727749,129.4,129.38,7.7870012]
[1743201097135,9.97397749,129.4,129.38,7.7870012]
[1743201097540,9.97397749,129.4,129.38,0.0529012]
[1743201098344,17.70727749,129.4,129.38,0.0529012]
[1743201099641,17.65283439,129.39,129.38,0.0529012]
[1743201100339,9.91903439,129.39,129.38,0.0529012]
[1743201101742,17.65283439,129.39,129.38,0.0529012]
[1743201107241,9.91903439,129.39,129.34,27.46]
[1743201107446,9.91903439,129.38,129.34,27.46]
[1743201107646,7.735,129.37,129.35,7.7361]
[1743201107847,7.735,129.37,129.34,27.46]
[1743201108151,7.79435339,129.37,129.34,27.46]
[1743201108853,7.7358,129.36,129.34,27.44]
[1743201109151,9.97838778,129.37,129.34,27.44]
[1743201109336,9.97838778,129.37,129.34,35.1765]
[1743201109537,7.79465339,129.37,129.34,27.44]
[1743201110149,0.05935339,129.37,129.34,37.35903439]
[1743201110948,0.05935339,129.37,129.36,7.7356]
[1743201116250,0.05935339,129.37,129.35,17.65483439]
[1743201116458,0.05935339,129.37,129.35,7.7358]
[1743201119261,0.05935339,129.37,129.36,7.7356]
[1743201121361,9.97838778,129.37,129.32,265.03903439]
[1743201121562,9.97838778,129.37,129.33,27.38]
[1743201121956,7.736,129.36,129.33,35.117]
[1743201122554,7.736,129.36,129.34,7.7368]
[1743201123462,7.736,129.36,129.33,35.1171]
[1743201123963,7.736,129.36,129.34,7.7368]
[1743201124368,7.736,129.36,129.33,27.38]
[1743201124565,7.736,129.36,129.33,35.1172]
[1743201124958,17.71368778,129.37,129.33,27.38]
[1743201125163,17.71368778,129.37,129.34,7.7364]
[1743201126367,17.71368778,129.37,129.35,7.7361]
[1743201126967,17.71368778,129.37,129.34,7.7365]
[1743201127168,7.7356,129.36,129.34,7.7365]
[1743201128869,17.71368778,129.37,129.34,7.7365]
[1743201129165,9.97838778,129.37,129.34,7.7365]
[1743201129670,9.97838778,129.37,129.35,7.7361]
[1743201130166,17.71368778,129.37,129.35,7.7361]
[1743201130470,9.97838778,129.37,129.35,7.7361]
[1743201130666,9.97838778,129.37,129.34,7.7365]
[1743201131170,7.7357,129.36,129.34,7.7365]
[1743201131371,9.97838778,129.37,129.35,7.7361]
[1743201132063,17.71358778,129.37,129.35,7.7361]
[1743201132768,7.7356,129.36,129.34,7.7365]
[1743201132967,7.7356,129.36,129.33,27.38]
[1743201133771,7.7356,129.36,129.34,7.7368]
[1743201137278,9.97838778,129.37,129.34,7.7368]
[1743201137279,17.71368778,129.37,129.34,7.7368]
[1743201137478,17.71368778,129.37,129.35,7.7361]
[1743201138284,0.05935339,129.37,129.36,35.0156]
[1743201140178,0.05935339,129.37,129.36,44.93463439]
[1743201140373,42.77944416,129.42,129.38,9.91903439]
[1743201140574,42.77944416,129.42,129.39,37.19903439]
[1743201141080,42.77944416,129.42,129.4,7.7328]
[1743201141279,42.77944416,129.42,129.39,37.19903439]
[1743201141476,0.05701429,129.42,129.4,0.0587267]
[1743201142086,0.05701429,129.42,129.4,7.7915267]
[1743201142576,0.05701429,129.42,129.41,7.7326]
[1743201142782,10.71718346,129.45,129.41,9.91903439]
[1743201142975,10.71718346,129.45,129.44,9.91903439]
[1743201143371,10.71718346,129.45,129.44,17.64983439]
[1743201143576,10.71718346,129.45,129.44,7.7308]
[1743201143974,10.71718346,129.45,129.43,17.70029583]
[1743201144175,10.71718346,129.45,129.43,0.05026144]
[1743201144378,117.62057929,129.46,129.43,0.05026144]
[1743201144379,7.78885672,129.46,129.43,0.05026144]
[1743201145676,0.05895672,129.46,129.44,9.91903439]
[1743201145873,0.05895672,129.46,129.45,37.23903439]
[1743201146280,0.05895672,129.46,129.45,44.96923439]
[1743201146784,0.05895672,129.46,129.45,27.32]
[1743201147283,9.97799111,129.46,129.45,27.32]
[1743201147576,7.7305,129.45,129.43,27.39026144]
[1743201147777,9.97799111,129.46,129.43,27.39026144]
[1743201147981,0.05895672,129.46,129.43,27.39026144]
[1743201148583,9.97799111,129.46,129.43,27.39026144]
[1743201149083,7.7302,129.45,129.43,27.39026144]
[1743201151384,7.7308,129.44,129.43,27.39026144]
[1743201151585,7.7308,129.44,129.43,0.05026144]
[1743201152187,17.64983439,129.44,129.43,0.05026144]
[1743201155189,7.7326,129.41,129.39,255.12]
[1743201155481,7.7326,129.41,129.39,282.42]
[1743201156073,9.91903439,129.43,129.39,282.42]
[1743201156274,11.87743439,129.45,129.41,9.91903439]
[1743201156487,9.91903439,129.46,129.42,27.32]
[1743201156674,0.05169018,129.44,129.43,7.7314]
[1743201156883,0.05169018,129.44,129.43,7.78085322]
[1743201157184,0.05169018,129.44,129.43,17.69988761]
[1743201161092,9.91903439,129.48,129.46,7.7294]
[1743201161294,17.64703439,129.49,129.46,35.0494]
[1743201161894,7.7284,129.48,129.46,27.32]
[1743201162088,7.7284,129.48,129.46,27.37818782]
[1743201162392,9.97700492,129.48,129.46,27.37818782]
[1743201162591,17.64803439,129.47,129.46,0.05818782]
[1743201162885,9.91903439,129.47,129.44,27.32]
[1743201163186,9.91903439,129.46,129.44,27.32]
[1743201163393,17.64893439,129.46,129.44,27.32]
[1743201163887,17.64893439,129.46,129.44,27.37494394]
[1743201164485,17.64923439,129.45,129.44,0.05494394]
[1743201169598,7.7299,129.46,129.44,0.05494394]
[1743201170099,7.7299,129.46,129.44,27.35494394]
[1743201170798,7.7302,129.45,129.44,27.35494394]
[1743201171296,7.7302,129.45,129.44,0.05494394]
[1743201171498,17.64883439,129.46,129.44,0.05494394]
[1743201171693,9.97700492,129.48,129.44,7.78554394]
[1743201172389,7.7295,129.47,129.44,7.78554394]
[1743201173196,7.78657053,129.48,129.45,7.7302]
[1743201174500,7.78657053,129.48,129.46,7.7296]
[1743201174798,7.78657053,129.48,129.45,9.91903439]
[1743201175796,7.78657053,129.48,129.45,17.64893439]
[1743201176703,7.7291,129.47,129.45,9.91903439]
[1743201177896,7.7296,129.46,129.44,9.97397833]
[1743201179200,7.7302,129.45,129.44,0.05494394]
[1743201181006,17.64893439,129.46,129.44,0.05494394]
[1743201181504,7.7299,129.46,129.44,0.05494394]
[1743201183108,7.7293,129.47,129.44,9.97397833]
[1743201183809,7.7293,129.47,129.44,17.70447833]
[1743201184507,7.7293,129.47,129.45,7.7301]
[1743201184811,7.7293,129.47,129.44,9.97397833]
[1743201185902,7.7293,129.47,129.45,7.7302]
[1743201186105,7.7293,129.47,129.44,9.97397833]
[1743201186305,7.7297,129.46,129.44,7.78544394]
[1743201186613,9.91903439,129.47,129.44,0.05494394]
[1743201187613,7.7296,129.46,129.44,0.05494394]
[1743201190113,9.91903439,129.47,129.44,0.05494394]
[1743201190114,7.7302,129.45,129.44,0.05494394]
[1743201191514,9.91903439,129.47,129.44,7.78534394]
[1743201191809,0.05797053,129.48,129.46,9.91903439]
[1743201192011,0.05797053,129.48,129.47,44.90803439]
[1743201192209,0.05797053,129.48,129.47,27.26]
[1743201192615,7.78637053,129.48,129.47,27.26]
[1743201197215,7.78637053,129.48,129.45,44.90893439]
[1743201198617,0.05797053,129.48,129.45,37.17903439]
[1743201198819,0.05797053,129.48,129.47,9.91903439]
[1743201199915,0.05797053,129.48,129.47,17.64803439]
[1743201203414,4.0361,129.55,129.52,7.7258]
[1743201204617,4.0947128,129.55,129.52,7.77771208]
[1743201204920,7.7249,129.54,129.52,7.77771208]
[1743201205112,7.7249,129.54,129.52,0.05191208]
[1743201205525,0.0586128,129.55,129.53,9.91903439]
[1743201205811,0.0586128,129.55,129.54,37.17903439]
[1743201206217,0.0586128,129.55,129.54,44.90383439]
[1743201207019,0.0586128,129.55,129.54,37.17903439]
[1743201208018,0.0586128,129.55,129.54,44.90383439]
[1743201208423,0.0586128,129.55,129.54,37.17903439]
[1743201209926,0.0586128,129.55,129.54,27.26]
[1743201210528,7.7828128,129.55,129.54,27.26]
[1743201215329,7.7254,129.53,129.52,254.93191208]
[1743201215625,9.91903439,129.53,129.48,37.17903439]
[1743201215830,9.91903439,129.52,129.48,27.26]
[1743201216026,7.7278,129.49,129.47,9.91903439]
[1743201216226,9.91903439,129.5,129.46,264.69903439]
[1743201216533,7.7284,129.48,129.47,27.28]
[1743201216833,7.7284,129.48,129.47,27.33816884]
[1743201217030,7.7284,129.48,129.47,0.05816884]
[1743201217431,0.05761562,129.49,129.47,0.05816884]
[1743201218324,0.05761562,129.49,129.48,44.92743439]
[1743201218922,9.91903439,129.56,129.51,7.7264]
[1743201219132,9.91903439,129.56,129.52,9.91903439]
[1743201219329,9.91903439,129.56,129.51,37.25903439]
[1743201220032,7.7251,129.54,129.52,0.0499834]
[1743201223340,7.7770867,129.55,129.52,7.7757834]
[1743201224634,7.7770867,129.55,129.53,7.7254]
[1743201224941,7.7770867,129.55,129.52,0.0499834]
[1743201225130,7.7770867,129.55,129.52,7.7755834]
[1743201226039,17.69612109,129.55,129.52,7.7755834]
[1743201226239,9.97182109,129.55,129.52,0.0499834]
[1743201226633,17.69632109,129.55,129.52,7.7756834]
[1743201226939,9.97182109,129.55,129.52,7.7756834]
[1743201227744,7.7248,129.54,129.52,7.7756834]
[1743201227934,9.97182109,129.55,129.52,7.7756834]
[1743201228243,0.0527867,129.55,129.52,7.7756834]
[1743201229243,7.7773867,129.55,129.52,7.7756834]
[1743201229748,7.7773867,129.55,129.53,7.7254]
[1743201230139,0.0527867,129.55,129.53,7.7254]
[1743201231047,0.0527867,129.55,129.54,7.7248]
[1743201231742,0.0527867,129.55,129.54,34.9848]
[1743201232949,0.0527867,129.55,129.54,27.26]
[1743201236343,0.0527867,129.55,129.52,27.2899834]
[1743201236850,7.7249,129.54,129.52,27.2899834]
[1743201237049,0.0527867,129.55,129.52,27.2899834]
[1743201237248,7.7773867,129.55,129.52,27.2899834]
[1743201238450,0.0527867,129.55,129.53,9.91903439]
[1743201238845,0.0527867,129.55,129.54,9.91903439]
[1743201239046,0.0527867,129.55,129.53,9.91903439]
[1743201240852,0.0527867,129.55,129.52,27.2899834]
[1743201240853,7.7254,129.53,129.52,27.2899834]
[1743201241246,7.7254,129.53,129.52,0.0499834]
[1743201246959,17.64443439,129.53,129.52,0.0499834]
[1743201247358,7.7254,129.53,129.52,0.0499834]
[1743201249462,7.7254,129.53,129.49,282.02]